Workbook

Sheet Start
A2: Introduktion til formler
A3: Med bare nogle få trin vil du være i gang med at opbygge formler og funktioner i Excel, der er verdens mest effektive regnearksapp.
A4: Gå tilbage til toppen ved at trykke på CTRL+HOME. Tryk på CTRL+PAGE DOWN for at starte præsentationen.

Sheet Grundlæggende funktioner
A1: Grundlæggende oplysninger: lav matematiske beregninger med Excel
A2: Du kan addere, subtrahere, multiplicere og dividere i Excel uden at bruge nogen indbyggede funktioner. Du skal bare bruge nogle grundlæggende operatorer: +, -, *, /. Alle formler starter med et lig med-tegn (=). | C2: Tal, der skal bruges: | E2: Handling: | F2: Formler: | G2: Svar:
A3: Du adderer ved at vælge celle F3, skrive =C3+C4 og så trykke på Enter. | C3: 1 | E3: Addering (+) | G3: =C3+C4 -> 3
A4: Du subtraherer ved at vælge celle F4, skrive =C3-C4 og så trykke på Enter. | C4: 2 | E4: Subtraktion (-) | G4: =C3-C4 -> -1
A5: Du multiplicerer ved at vælge celle F5, skrive =C3*C4 og så trykke på Enter. | E5: Multiplikation (*) | G5: =C3*C4 -> 2
A6: Du dividerer ved at vælge celle F6, skrive =C3/C4 og så trykke på Enter. | E6: Division (/) | G6: =C3/C4 -> 0.5
A7: Se dette: Skift tallene i cellerne C3 og C4, og se hvordan formelresultaterne automatisk ændres. | E7: Opløftning (^) | G7: =C3^C4 -> 1
A8: EKSTRA KREDIT: Du kan opløfte en værdi til en potens ved at bruge symbolet karat (^), f.eks. =A1^A2. Angiv den med Skift+¨. I celle C7 skal du skrive =C3^C4.
A9: Rul ned for at få flere detaljer
A10: Næste trin
A11: Mere om formler, celler og områder
A12: Excel består af individuelle celler, der er grupperet i rækker og kolonner. Rækker er nummererede, og kolonner er markeret med bogstaver. Der er mere end 1 million rækker og 16.000 kolonner, og du kan placere formler i enhver af dem.
A13: Formler kan indeholder cellereferencer, rækker af cellereferencer, operatorer og konstanter. Følgende er alle eksempler på formler: =A1+B1 =10+20 =SUM(A1:A10)
A14: Du vil bemærke, at i vores tredje eksempel ovenfor, brugte vi funktionen SUM. En funktion er en forudkonstrueret kommando, der tager en værdi eller værdier, beregner dem på en bestemt måde og returnerer et resultat. Funktionen SUM tager f.eks. de cellereferencer eller områder, du specificerer, og lægger dem sammen. I dette eksempel tager det cellerne fra A1 til og med A10 og lægger dem sammen. Excel omfatter mere end 400 funktioner, som du kan udforske på fanen Formler.
A15: Formler med funktioner starter med et lig med-tegn og derefter funktionsnavnet med dets argumenter (de værdier en funktion anvender til beregning) omgivet af parenteser.
A16: Du bekræfter en formel ved at trykke på Enter. Når du gør dette, vil formlen udføre beregningen, og resultatet vises i cellen. Hvis du selv vil se selve formlen, kan du kigge på formellinjen under båndet eller trykke på F2 for at gå til tilstanden Rediger, hvor du vil se formlen i cellen. Tryk på Enter igen for at færdiggøre formlen og beregne resultatet.
A17: Nogle formelforklaringer
A18: =10+20 er en formel, hvor 10 og 20 er konstanter, og tegnet + er operatoren.
A19: =SUM(A1:A10) er en formel, hvor SUM er funktionsnavnet, venstre- og højreparenteserne indeholder formelargumenterne, og A1:A10 er celleområdet for funktionen.
A20: =SUM(A1:A10;C1:C10) er en formel, hvor SUM er funktionsnavnet, venstre- og højreparenteserne indeholder formelargumenterne, og A1:A10;C1:C10 er celleområdet for funktionen, adskilt med et semikolon.
A21: VÆRD AT VIDE: Konstanter er værdier, som du indtaster i celler eller formler. Mens =10+20 måske beregner det samme som =A1+B1, er det ikke en god ide at bruge konstanter. Hvorfor ikke? Fordi du ikke let kan se konstanten uden at markere cellen og lede efter den. Det kan gøre det svært at ændre senere. Det er meget lettere at placere dine konstanter i celler, hvor de lettere kan justeres og henvises til i dine formler. For eksempel: Markér den gule celle med 12 nedenfor. Du vil se, at vi bruger funktionen SUM med en række celler. Vi indtastede ikke "4" eller "8" direkte i formlen.
A22: Forrige
A23: Næste
A24: Flere oplysninger på nettet
A25: Brug Excel som lommeregner
A26: Oversigt over formler i Excel
A27: Excel-funktioner (efter kategori)
A28: Excel-funktioner (alfabetisk)
A29: Gratis onlinekurser i Excel
J40: Værdier
J41: 4
J42: 8
J43: =SUM(J41:J42) -> 12

Sheet Introduktion til funktioner
A1: Introduktion til funktioner
A2: Funktioner giver dig mulighed for at udføre en lang række ting, f.eks. udføre matematiske operationer, slå værdier op eller endda beregne datoer og klokkeslæt. Lad os prøve nogle måder til at addere værdier ved hjælp af funktionen SUM. | C2: Frugt | D2: Mængde | F2: Kød | G2: Mængde
A3: Under kolonnen Mængde for Frugt (celle D7) skal du skrive =SUM(D3:D6) eller indtaste =SUM(, og vælge området med musen og trykke på Enter. Dette opsummerer værdierne i cellerne D3, D4, D5 og D6. Dit svar skal være 170. | C3: Æbler | D3: 50 | F3: Okse | G3: 50
A4: Lad os nu prøve AutoSum. Markér cellen under kolonnen for Kød (celle G7), og gå så til formler > AutoSum > vælg SUM. Du vil se, at Excel automatisk indfører formlen for dig. Tryk på Enter for at bekræfte den. Funktionen AutoSum omfatter alle de mest almindelige funktioner. | C4: Appelsiner | D4: 20 | F4: Kylling | G4: 30
A5: Her er en smart tastaturgenvej. Markér celle D15, tryk på Alt = og så Enter. Dette indfører automatisk SUM for dig. | C5: Bananer | D5: 60 | F5: Svin | G5: 10
A6: Dyk ned for at få flere detaljer | C6: Citroner | D6: 40 | F6: Fisk | G6: 50
A7: EKSTRA KREDIT Prøv funktion TÆL ved at bruge en af de metoder, du allerede har prøvet. Funktionen TÆL tæller antallet af celler i et område, som indeholder tal. | C7: SUM > | D7: =SUM(D3:D6) -> 170 | F7: SUM >
A8: Næste trin
A9: Mere om funktioner | C9: Vare | D9: Mængde | F9: Vare | G9: Mængde
A10: Gå til fanen Formler og gennemse funktionsbiblioteket, hvor funktioner er opdelt efter kategori, f.eks. tekst, dato og klokkeslæt osv. Med Indsæt funktion kan du søge efter funktioner ud fra navn og starte guiden Funktion, som kan hjælpe dig med at opbygge din formel. Når du begynder at indtaste et funktionsnavn efter tryk på =, startes IntelliSense i Excel, hvori alle de funktioner, der starter med de bogstaver, du indtaster, vises. Når du finder den ønskede funktion, skal du trykke på tabulatortasten, hvorefter funktionsnavnet automatisk fuldføres og venstreparentesen indføres i Excel. Det viser også de valgfri og påkrævede argumenter. Lad os se nærmere på anatomien af nogle få funktioner. Funktionen SUM har følgende struktur: | C10: Brød | D10: 50 | F10: Brød | G10: 50
A11: Hvis funktionen SUM kunne tale, ville den sige "Returnér summen af alle værdierne i cellerne D35 til D38 og hele kolonne H". SUM er funktionsnavnet, D35:D38 er det første områdeargument, hvilket næsten altid kræves, og H:H er det andet områdeargument adskilt med semikolon. Lad os nu prøve én, der ikke kræver nogen argumenter. | C11: Donuts | D11: 100 | F11: Donuts | G11: 100
A12: Funktion IDAG returnerer dags dato. Den opdateres automatisk, når Excel genberegner. | C12: Småkager | D12: 40 | F12: Småkager | G12: 40
A13: SE HER Markér disse celler. Derefter skal du i nederste højre hjørne af Excel-vinduet se efter SUM: 170 på nederste linje. Det kaldes statuslinjen og er bare en anden måde til hurtigt at finde en total og andre oplysninger om en valgt celle eller et valgt område. | C13: Kager | D13: 50 | F13: Kager | G13: 50
A14: VIGTIGE OPLYSNINGER Dobbeltklik på denne celle. Du vil bemærke, at der står 100 mod slutningen. Selvom det er muligt at lægge tal i en formel på denne måde, så anbefaler vi det kun, hvis det er strengt nødvendigt. Tallet kaldes en konstant, og det er nemt at glemme, at det er der. Vi anbefaler, at du henviser til en anden celle i stedet for – f.eks. celle F51. På den måde kan det let ses og er ikke skjult i en formel. | C14: Tærter | D14: 20 | F14: Tærter | G14: 20
A15: Flere oplysninger på nettet | C15: SUM > | F15: TÆL >
A16: Alt om funktionen SUM
A17: Brug AutoSum til at summere tal
A18: Alt om funktionen TÆL
A19: Gratis onlinekurser i Excel
A20: Tilbage til toppen
A21: Næste trin
C34: Frugt | D34: Mængde
C35: Æbler | D35: 50
C36: Appelsiner | D36: 20
C37: Bananer | D37: 60
C38: Citroner | D38: 40
C39: SUM > | D39: =SUM(D35:D38) -> 170
C44: Vare | D44: Mængde
C45: Biler | D45: 20
C46: Lastbiler | D46: 10
C47: Cykler | D47: 10
C48: Skøjter | D48: 40
D50: I alt: | F50: Yderligere værdi | G50: Ny total
D51: =SUM(D45:D48,100) -> 180 | F51: 100 | G51: =SUM(D45:D48,F51) -> 180

Sheet GENNEMSNIT
A1: Funktionen MIDDEL
A2: Brug funktionen MIDDEL til at udregne MIDDELtet af tal i en række celler. | C2: Frugt | D2: Mængde | F2: Kød | G2: Mængde
A3: Markér celle D7, og brug så guiden AutoSum til at tilføje en MIDDEL-funktion. | C3: Æbler | D3: 50 | F3: Okse | G3: 50
A4: Markér nu celle G7, og indtast en MIDDEL-funktion ved at skrive =MIDDEL(G3:G6). | C4: Appelsiner | D4: 20 | F4: Kylling | G4: 30
A5: I celle D15 kan du bruge enten AutoSum eller skrive for at angive en anden MIDDEL-funktion. | C5: Bananer | D5: 60 | F5: Svin | G5: 10
A6: SE HER Vælg en vilkårlig række tal, og kig så på statuslinjen efter et øjeblikkeligt MIDDEL. | C6: Citroner | D6: 40 | F6: Fisk | G6: 50
A7: Aktivér det forrige ark | C7: MIDDEL > | F7: MIDDEL >
A8: Gå til det næste ark
A9: EKSTRA KREDIT Prøv at bruge MEDIAN eller HYPPIGST her. MEDIAN giver dig værdien i midten af datasættet, mens HYPPIGST giver den, der forekommer mest hyppigt. | C9: Vare | D9: Mængde | F9: Vare | G9: Mængde
A10: Links til flere oplysninger på internettet | C10: Brød | D10: 50 | F10: Brød | G10: 50
A11: Vælg denne for at få alt at vide om funktionen MIDDEL på internettet | C11: Donuts | D11: 100 | F11: Donuts | G11: 100
A12: Vælg denne for at få alt at vide om funktionen MEDIAN på internettet | C12: Småkager | D12: 40 | F12: Småkager | G12: 40
A13: Vælg denne for at få alt at vide om funktionen HYPPIGST på internettet | C13: Kager | D13: 50 | F13: Kager | G13: 50
A14: Vælg for at få mere at vide om Gratis onlinekurser i Excel på internettet | C14: Tærter | D14: 20 | F14: Tærter | G14: 20
C15: MIDDEL >

Sheet MIN OG MAKS
A1: Funktionerne MIN og MAKS
A2: Brug funktionen MIN til at få vist det mindste tal i et celleområde. | C2: Frugt | D2: Mængde | F2: Kød | G2: Mængde
A3: Brug funktionen MAKS til at få vist det højeste tal i et celleområde. | C3: Æbler | D3: 50 | F3: Okse | G3: 50
A4: Klik i celle D7, og brug så guiden AutoSum til at tilføje en MIN-funktion. | C4: Appelsiner | D4: 20 | F4: Kylling | G4: 30
A5: Markér nu celle G7, og indtast en MAKS-funktion ved at skrive =MAKS(D3:D6). | C5: Bananer | D5: 60 | F5: Svin | G5: 10
A6: I celle D15 kan du bruge enten guiden AutoSum eller skrive for at angive en MIN- eller MAKS-funktion. | C6: Citroner | D6: 40 | F6: Fisk | G6: 50
A7: Flere oplysninger på nettet | C7: MIN > | F7: MAKS >
A8: Alt om funktionen MIN
A9: Alt om funktionen MAKS | C9: Vare | D9: Mængde | F9: Vare | G9: Mængde
A10: Gratis onlinekurser i Excel | C10: Brød | D10: 50 | F10: Brød | G10: 50
A11: VÆRD AT VIDE Du kan bruge enten MIN eller MAKS med flere områder eller værdier til at vise den højere og den lavere af disse værdier, f.eks. =MIN(A1:A10;B1:B10), eller =MAKS(A1:A10;B1), hvor B1 indeholder en grænseværdi, f.eks. 10, hvilket betyder, at formlen aldrig ville returnere et resultat på under 10. | C11: Donuts | D11: 100 | F11: Donuts | G11: 100
C12: Småkager | D12: 40 | F12: Småkager | G12: 40
C13: Kager | D13: 50 | F13: Kager | G13: 50
C14: Tærter | D14: 20 | F14: Tærter | G14: 20
C15: MIN eller MAKS > | G15: =MIN(G10:G14,10) -> 10

Sheet Dato og klokkeslæt
A1: Datofunktioner
A2: I Excel kan du se den aktuelle dato, der er baseret på computerens internationale indstillinger. Du kan også tilføje eller subtrahere datoer.
A3: Se funktionen IDAG, som viser dig dags dato. Dette er direkte eller flygtige funktioner, så når du åbner din projektmappe i morgen, vil morgendagens dato blive vist. Indtast =IDAG() i celle D6.
A4: Subtraher datoer – Indtast din næste fødselsdag i formatet DD/MM/ÅÅ i celle D7, og se hvordan der i Excel angives, hvor mange dage der er til det, ved at bruge =D7-D6 i celle D8.
A5: Tilføj datoer – Forestil dig, at du vil vide, på hvilken dato en betaling forfalder, eller hvornår du skal returnere en bog, du har lånt på biblioteket. Du kan føje dage til en dato for at finde ud af det. I celle D10 skal du indtaste et vilkårligt antal dage. I celle D11 har vi tilføjet =D6+D10 for at beregne forfaldsdatoen fra i dag. | C5: Datofunktioner
A6: VÆRD AT VIDE Excel bevarer datoer og klokkeslæt baseret på antallet af dage startende fra 1. januar 1900. Tider bevares i brøkdele af en dag på minutbasis. Det vil sige, at 01-01-2017 00:30 faktisk er gemt som 42736.5208. Hvis dato eller klokkeslæt vises som tal på den måde, kan du trykke på Ctrl+1 > Tal > vælge et dato- eller klokkeslætsformat. | C6: Dags dato: | F6: =IF(D6=TODAY(),"Du har forstået det!","") -> 
A7: VIGTIGE OPLYSNINGER Hvis du ikke vil have Excel til at vise et negativt tal, fordi du endnu ikke har indtastet din fødselsdag, kan du bruge en HVIS-funktion sådan her: =HVIS(D7="";"";D7-D6), der angiver "HVIS D7 er lig med ingenting, så vis ingenting, og vis ellers D7 minus D6". | C7: Din fødselsdag:
A8: Tidsfunktioner | C8: Dage indtil din fødselsdag: | D8: =D7-D6 -> 0
A9: I Excel kan du se det aktuelle klokkeslæt, der er baseret på computerens internationale indstillinger. Du kan også tilføje og subtrahere klokkeslæt. Du vil f.eks. gerne holde styr på, hvor mange timer en medarbejder har arbejdet hver uge, og beregne løn og overtid.
A10: I celle D28 skal du skrive =NU(), hvilket giver dig det aktuelle klokkeslæt og opdaterer hvert klokkeslæt, der beregnes i Excel. Hvis du vil ændre klokkeslætsformatet, skal du gå til Ctrl+1 > Tal > Klokkeslæt > Vælg det ønskede format. | C10: Udvidet periode, dage:
A11: Addér timer mellem klokkeslæt – I celle D36 har vi indtastet =((D35-D32)-(D34-D33))*24, hvilket beregner nogens start- og sluttider og derefter subtraherer den tid, de brugte til frokostpause. Tegnene *24 til sidst i formlen konverterer den brøkdel af dagen, som registreres i Excel, til timer. Du skal dog formatere cellerne som et tal. Det gør du ved at gå til Hjem > Formatér celler (Ctrl+1) > Tal > Tal > 2 decimaler. | C11: Faktura forfalder den: | D11: =D6+D10 -> 00:00:00
A12: Hvis denne formel kunne tale, ville den sige "Tag Tid ud, og subtraher den fra Tid ind, og subtraher så Frokost ud/ind-tider, og multiplicer dem så med 24 for at konvertere tidsbrøkdelene i Excel til timer", eller =((Tid ud - Tid ind)-(Frokost ind - Frokost ud))*24.
A13: Forrige
A14: Næste
A15: Flere oplysninger på nettet
A16: Alt om funktionen IDAG
A17: Alt om funktionen NU
A18: Alt om funktionen DATO
A19: Gratis onlinekurser i Excel
C27: Tidsfunktioner
C28: Aktuelt klokkeslæt:
C31: Daglige arbejdstimer
C32: Tid ind: | D32: 08:00:00
C33: Frokost ud: | D33: 12:00:00
C34: Frokost ind: | D34: 13:00:00
C35: Tid ud: | D35: 17:00:00
C36: Samlet antal timer: | D36: =((D35-D32)-(D34-D33))*24 -> 8
C45: Statisk dato og klokkeslæt
C46: Dato: | D46: 2017-09-27
C47: Klokkeslæt: | D47: 08:52:00

Sheet Sammenkæd tekst og tal
A1: Sammenkædning af tekst fra forskellige celler
A2: Der er mange gange i Excel, hvor du vil sammenkæde tekst, der findes i forskellige celler. Dette eksempel er meget typisk, hvor du har for- og efternavn og vil kombinere dem som fornavn, efternavn eller fulde navn. Heldigvis kan det gøres i Excel ved hjælp af og-tegnet (&), som du kan indtaste med Skift+6. | C2: Fornavn | D2: Efternavn | E2: Efternavn, Fornavn | F2: Fulde navn
A3: I celle E3 skal du skrive =D3&C3 for at sammenkæde efter- og fornavne. | C3: Nancy | D3: Smith | E3: =D3&", "&C3 -> Smith, Nancy | F3: =C3&" "&D3 -> Nancy Smith
A4: SmithNancy ser dog ikke helt rigtigt ud. Vi skal tilføje et komma og et mellemrum. Det gøres ved at bruge anførselstegn til at oprette en ny tekststreng. Denne gang skal du indtaste =D3&","&C3. Delen &", "& lader os sammenkæde et komma og et mellemrum med teksten i cellerne. | C4: Andy | D4: North
A5: Du opretter det fulde navn ved først at sammenkæde for- og efternavn, men med brug af et mellemrum uden et komma. I F3 skal du skrive =C3&" "&D3. | C5: Jan | D5: Kotas
A6: Dyk ned for at få flere detaljer | C6: Mariya | D6: Jones
A7: Næste | C7: Steven | D7: Thorpe
A8: Brug af tekst og tal sammen | C8: Michael | D8: Neipper
A9: Nu bruger vi & til at sammenkæde tekst og tal og ikke kun tekst og tekst. Kig på cellerne C28:D29. Kan du se, hvordan datoerne og klokkeslættene er i separate celler? Du kan sammenkæde dem med &-symbolet, som du vil se i cellerne C32:C33, men det ser ikke helt rigtigt ud, gør det? Uheldigvis ved Excel ikke, hvordan du vil formatere tallene, så det bryder dem ned til deres mest simple format, hvilket i dette tilfælde er den serielle dato. Vi skal fortælle Excel specifikt, hvordan taldelen af formlen skal formateres, så den vises, som du vil have det, i den resulterende tekststreng. Det kan du gøre med funktionen TEKST og en formatkode. | C9: Robert | D9: Zare
A10: I celle C36 skal du skrive =C28&" "&TEKST(D28;"DD-MM-ÅÅÅÅ"). DD-MM-ÅÅÅÅ er den danske formatkode for Dag-måned-år, f.eks. 25-09-2017. | C10: Yvonne | D10: McKay
A11: I celle C37 skal du skrive =C29&" "&TEKST(D29;"tt:mm"). tt:mm er det danske kode for Timer:Minutter, f.eks. 13:30.
A12: SE HER Formler, og specielt længere formler, kan nogle gange være svære at læse, men du kan opdele deres dele som her: =C28 & " " & TEKST(D28;"DD-MM-ÅÅÅÅ")
A13: VÆRD AT UDFORSKE Hvis du ikke ved, hvilken formatkode, du skal bruge, kan du bruge Ctrl+1 > Tal til at formatere enhver celle på den måde, du vil. Vælg derefter indstillingen Brugerdefineret. Du kan kopiere den formatkode, der vises, til din formel.
A14: Flere oplysninger på nettet
A15: Alt om funktionen TEKST
A16: Kombiner tekst og tal
A17: Gratis onlinekurser i Excel
C27: Brug tekst og tal
C28: Dags dato: | D28: =TODAY() -> 2021-10-19
C29: Aktuelt klokkeslæt: | D29: =NOW() -> 44488.37954
C31: Sammenkædning af tekst og tal
C32: =C28&" "&D28 -> Dags dato: 44488
C33: =C29&" "&D29 -> Aktuelt klokkeslæt: 44488.3795421296
C35: Formatering af tekst og tal
C36: =C28 &" "& TEXT(D28,"DD-MM-ÅÅÅÅ") -> Dags dato: 19-10-Tuesday
C37: =C29&" "&TEXT(D29,"tt:mm") -> Aktuelt klokkeslæt: tt:10

Sheet HVIS-sætninger
A1: HVIS-sætninger
A2: HVIS-sætninger gør det muligt at foretage logiske sammenligninger mellem betingelser. En HVIS-sætning angiver generelt, at hvis én betingelse er sand, skal der gøres én ting og i modsat fald noget andet. Formlerne kan returnere tekst, værdier eller endnu flere beregninger.
A3: I celle D9 skal du skrive =HVIS(C9="Æble";SAND;FALSK). Det rigtige svar er SAND.
A4: Kopiér D9 til D10. Svaret her skal være FALSK, fordi en appelsin ikke er et æble.
A5: Prøv et andet eksempel ved at kigge på formlen i celle D12. Du startede med =HVIS(C12<100;"Mindre end 100";"Større end eller lig med 100"). Hvad sker der, hvis du indtaster et tal, der er større end 100 i celle C12?
A6: VIGTIGE OPLYSNINGER SAND og FALSK er ikke som andre ord i Excel-formler, fordi de ikke behøver at være i anførselstegn, og fordi de automatisk skrives med stort i Excel. Tal behøver heller ikke at være i anførselstegn. Almindelig tekst, f.eks. Ja eller Nej, skal være i anførselstegn, som vist her: =Hvis(C9 ="Æble";"Ja";"Nej")
A7: Rul ned for at få flere detaljer
A8: Næste | C8: HVIS-sætninger
A9: HVIS-sætning med en anden funktion | C9: Æble
A10: HVIS-sætninger kan også fremtvinge gennemførelsen af flere beregninger, hvis en bestemt betingelse er opfyldt. Her evaluerer vi en celle for at se, om der skal opkræves moms, og beregner den, hvis betingelsen er sand. | C10: Appelsin
A11: I celle F33 har vi indtastet =HVIS(E33="Ja";F31*Moms;0), hvor vi konfigurerer Moms som et navngivet område med en værdi på 0,0825. Vores formel angiver, at Hvis celle E33 svarer til Ja, så skal celle F31 multipliceres med Moms, og ellers skal der returneres et 0. Prøv at ændre Ja til Nej i celle E33 for at se ændringen i beregningen.
A12: Derefter har vi tilføjet en HVIS-sætning til beregning af forsendelse, hvis det er nødvendigt. I celle F35 vil du se =HVIS(E35="Ja";SUM(D28:D29)*1,25;0). Det angiver, at "Hvis celle E35 er Ja, skal summen af kolonnen Mængde i tabellen ovenfor tages og multipliceres med 1,25, og ellers skal returneres et 0". | C12: 50 | D12: =IF(C12<100,"Mindre end 100","Større end eller lig med 100") -> Mindre end 100
A13: Derefter skal du ændre 1,25 i formlen i celle F35 til "Forsendelse". Når du begynder at skrive, vil autokorrektionen i Excel finde det for dig. Når det vises, skal du trykke på tabulatortasten for at angive det. Dette er navngivet område, og vi har indtastet det via Formler > Definer navn. Hvis du herefter skulle få brug for at ændre dine forsendelsesomkostninger, skal du bare gøre det ét sted, og du kan bruge forsendelsesnavnet hvor som helst i projektmappen.
A14: VÆRD AT VIDE Når du opretter en formel, indsættes farvede kanter automatisk omkring alle områder, der henvises til i formlen, i Excel, og de tilsvarende områder i formlen vil have samme farve. Du kan se dette, hvis du vælger cellen F33 og trykker på F2 for at redigere formlen.
A15: EKSPERTTIP Navngivne områder gør det muligt at definere ord eller værdier på ét sted og så genbruge dem i hele projektmappen. Du kan få vist alle de navngivne områder i denne projektmappe ved at gå til Formler > Navnestyring. Klik her for at få mere at vide.
A16: Forrige
A17: Næste
A18: Flere oplysninger på nettet
A19: Alt om funktionen HVIS
A20: Alt om funktionen HVISER
A21: Avancerede HVIS-sætninger
A22: Gratis onlinekurser i Excel
C27: Vare | D27: Mængde | E27: Omkostning | F27: Total
C28: Widget | D28: 2 | E28: kr. 9.76 | F28: ='HVIS-sætninger'!$E$28:$E$29*'HVIS-sætninger'!$D$28:$D$29 -> kr. 19.52
C29: Doohickey | D29: 3 | E29: kr. 3.42 | F29: kr. 10.26
D31: Subtotal | E31: =SUM('HVIS-sætninger'!$E$28:$E$29) -> kr. 13.18 | F31: =SUM('HVIS-sætninger'!F28:F29) -> kr. 29.78
D33: Moms? | E33: Ja | F33: =IF(E33="Ja",F31*Moms,0) -> kr. 2.46
D35: Forsendelse? | E35: Ja | F35: =IF(E35="Ja",SUM(D28:D29)*1.25,0) -> kr. 6.25
D37: Total | F37: =SUM(F33,F31,F35) -> kr. 38.48

Sheet LOPSLAG
A1: LOPSLAG
A2: LOPSLAG er en af de mest almindeligt brugte funktioner i Excel (og også en af vores favoritter). LOPSLAG gør det muligt at slå en værdi op i en kolonne til venstre og derefter få returneret oplysninger i en anden kolonne til højre, hvis der findes et resultat. LOPSLAG siger:
A3: =LOPSLAG(A1;B:C;2;FALSK)
A4: Hvad vil du lede efter?
A5: Hvis du finder det, hvor mange kolonner til højre vil du så have, skal indeholde en værdi?
A6: Hvor vil du lede efter det?
A7: Vil du have en nøjagtig eller anslået sammenligning?
A8: I celle D22 skal du skrive =LOPSLAG(C22;C17:D20;2;FALSK). Det korrekte svar for Æbler er 50. LOPSLAG søgte efter Æbler, fandt det, og gennemgik så én kolonne til højre og returnerede antallet.
A9: Prøv det nu selv i afsnittet Kød i celle G22. Du skulle gerne ende med =LOPSLAG(F22;F17:G20;2;FALSK).
A10: EKSPERIMENT Prøv at vælge forskellige elementer på rullelisterne. Du vil se, at resultatcellerne straks opdateres med nye værdier.
A11: Dyk ned for at få flere detaljer
A12: Næste
A13: LOPSLAG og #I/T
A14: Du vil utvivlsomt løbe ind i en situation, hvor LOPSLAG ikke kan finde det, du bad om, og der returneres en fejl (#I/T). Nogle gange skyldes det, at opslagsværdien simpelthen ikke findes, eller det kan skyldes, at referencecellen endnu ikke har en værdi.
A15: Hvis du ved, at din opslagsværdi findes, men vil skjule fejlen, hvis opslagscellen er tom, kan du bruge en HVIS-sætning. I så fald omgiver vi vores eksisterende LOPSLAG-formel som følgende i celle D43: =HVIS(C43="";"";LOPSLAG(C43;C37:D41;2;FALSK)) Dette angiver, om celle C43 er lig med ingenting (""), returnerer derefter ingenting, og returnerer ellers resultaterne af LOPSLAG. Bemærk den anden højreparentes til sidst i formlen. Den lukker HVIS-sætningen.
A16: Hvis du ikke er sikker på, at din opslagsværdi findes, men du stadig vil undertrykke fejlen #I/T, kan du bruge en funktion til håndtering af fejl, der kaldes HVIS.FEJL i celle G43: =HVIS.FEJL(LOPSLAG(F43;F37:G41;2;FALSK);""). HVIS.FEJL angiver, om LOPSLAG returnerer et gyldigt resultat, og derefter viser det og ellers viser ingenting (""). Vi har ikke vist noget her (""), men du kan også bruge tal (0, 1, 2 osv.) eller tekst, f.eks. "Formlen er ikke rigtig". | C16: Frugt | D16: Mængde | F16: Kød | G16: Mængde
A17: VIGTIGE OPLYSNINGER HVIS.FEJL er det, der kaldes en tom fejlbehandler, hvilket betyder, at den vil undertrykke enhver fejl, som din formel kunne udløse. Det kan give problemer, hvis der i Excel vises en meddelelse om, at din formel indeholder en reel fejl, der skal rettes. En tommelfingerregel er ikke at føje fejlbehandlere til dine formler, før du er helt sikker på, at de fungerer korrekt. | C17: Æbler | D17: 50 | F17: Okse | G17: 50
A18: Forrige | C18: Appelsiner | D18: 20 | F18: Kylling | G18: 30
A19: Næste | C19: Bananer | D19: 60 | F19: Svin | G19: 10
A20: Flere oplysninger på nettet | C20: Citroner | D20: 40 | F20: Fisk | G20: 50
A21: Alt om funktionen LOPSLAG
A22: Alt om funktionerne INDEKS/SAMMENLIGN | C22: Æbler | F22: Svin
A23: Alt om funktionen HVIS.FEJL
A24: Brug pivottabeller til at analysere regnearksdata
A25: Gratis onlinekurser i Excel
C35: Hvis funktionen SUM i celle D42 kunne tale, ville den sige følgende: Læg værdierne sammen i cellerne D38, D39, D40 og D41.
C36: Vare | D36: Mængde | F36: Vare | G36: Mængde
C37: Brød | D37: 50 | F37: Brød | G37: 50
C38: Donuts | D38: 100 | F38: Donuts | G38: 100
C39: Småkager | D39: 40 | F39: Småkager | G39: 40
C40: Kager | D40: 50 | F40: Kager | G40: 50
C41: Tærter | D41: 20 | F41: Tærter | G41: 20
D43: =VLOOKUP(C43,C37:D41,2,FALSE) ->  | F43: Bagværk | G43: =IFERROR(VLOOKUP(F43,F37:G41,2,FALSE),"") -> 

Sheet Betingede funktioner
A1: Betingede funktioner – SUM.HVIS
A2: Med betingede funktioner kan du udregne sum, gennemsnit, udføre tælling eller finde min. eller maks. for et område ud fra en given betingelse eller et givet kriterium, som du specificerer. Det kunne være: Hvor mange ud af alle frugterne på listen er æbler? Eller: Hvor mange appelsiner er af typen Florida? | C2: Frugt | D2: Mængde | F2: Frugt | G2: Type | H2: Mængde | Z2: Frugt | AB2: Æbler | AD2: Appelsiner | AF2: Bananer | AH2: Citroner
A3: Med SUM.HVIS kan du summere i ét område ud fra et bestemt kriterium, som du leder efter i et andet område, f.eks. hvor mange æbler du har. Markér celle D17, og skriv =SUM.HVIS(C3:C14;C17;D3:D14). SUM.HVIS er struktureret som følgende: | C3: Æbler | D3: 50 | F3: Æbler | G3: Fuji | H3: 50 | Z3: Æbler | AB3: Fuji | AD3: Florida | AF3: Cavendish | AH3: Grov
A4: =SUMIF(C3:C14,C17,D3:D14) -> 150 | C4: Appelsiner | D4: 20 | F4: Appelsiner | G4: Florida | H4: 20 | Z4: Appelsiner | AB4: Honeycrisp | AD4: Navle | AF4: Lady Finger | AH4: Eureka
A5: Hvilket område vil du kigge på? | C5: Bananer | D5: 60 | F5: Bananer | G5: Cavendish | H5: 60 | Z5: Bananer
A6: Hvilken værdi (tekst eller tal) vil du søge efter? | C6: Citroner | D6: 40 | F6: Citroner | G6: Grov | H6: 40 | Z6: Citroner
A7: Hvilket område vil du opsummere i for hvert fundet resultat? | C7: Æbler | D7: 50 | F7: Æbler | G7: Honeycrisp | H7: 50
A8: SUM.HVISER er det samme som SUM.HVIS, men det lader dig bruge flere kriterier. Så i dette eksempel kan du søge efter Frugt og Type i stedet for bare Frugt. Markér celle H17, og skriv =SUM.HVISER(H3:H14;F3:F14;F17;G3:G14;G17). SUM.HVISER er struktureret som følgende: | C8: Appelsiner | D8: 20 | F8: Appelsiner | G8: Navle | H8: 20
A9: =SUM.HVISER(H3:H14;F3:F14;F17;G3:G14;G17) | C9: Bananer | D9: 60 | F9: Bananer | G9: Lady Finger | H9: 60
A10: Hvilket område vil du opsummere? | C10: Citroner | D10: 40 | F10: Citroner | G10: Eureka | H10: 40
A11: Dette er det første område, der skal søges i efter resultater | C11: Æbler | D11: 50 | F11: Æbler | G11: Honeycrisp | H11: 50
A12: Dette er kriteriet for det første resultat | C12: Appelsiner | D12: 20 | F12: Appelsiner | G12: Navle | H12: 20
A13: Dette er det andet område, der skal søges i efter resultater | C13: Bananer | D13: 60 | F13: Bananer | G13: Cavendish | H13: 60
A14: Dette er kriteriet for det andet resultat | C14: Citroner | D14: 40 | F14: Citroner | G14: Eureka | H14: 40
A15: EKSPERTTIP Hver af cellerne for Frugt og Type har en rulleliste, hvor du kan vælge forskellige frugter. Prøv det, og se, hvordan formlerne automatisk opdateres.
A16: Dyk ned for at få flere detaljer | C16: Frugt | D16: SUM.HVIS | F16: Frugt | G16: Type | H16: SUM.HVISER
A17: Næste trin | C17: Æbler | F17: Appelsiner | G17: Florida
A18: Betingede funktioner – TÆL.HVIS
A19: TÆL.HVIS og TÆL.HVISER lader dig tælle værdier i et område ud fra et kriterium, du vælger. De er en smule anderledes end de andre HVIS- og HVISER-funktioner derved, at de kun har et kriterieområde og kriterier. De evaluerer ikke kun ét område og kigger så i et andet for at opsummere.
A20: Markér celle D64, og skriv =TÆL.HVIS(C50:C61;C64). TÆL.HVIS er struktureret som følgende:
A21: =TÆL.HVIS(C50:C61;C64)
A22: Hvilket område vil du kigge på?
A23: Hvilken værdi (tekst eller tal) vil du søge efter?
A24: TÆL.HVISER er det samme som SUM.HVIS, men det lader dig bruge flere kriterier. Så i dette eksempel kan du søge efter Frugt og Type i stedet for bare Frugt. Markér celle H64, og skriv =TÆL.HVISER(F50:F61;F64;G50:G61;G64). TÆL.HVISER er struktureret som følgende:
A25: =TÆL.HVISER(F50:F61;F64;G50:G61;G64)
A26: Dette er det første område, der skal tælles
A27: Dette er kriteriet for det første resultat
A28: Dette er det andet område, der skal tælles
A29: Dette er kriteriet for det andet resultat
A30: Dyk ned for at få flere detaljer
A31: Næste
A32: Flere betingede funktioner
A33: Du har allerede set SUM.HVIS, SUM.HVISER, TÆL.HVIS og TÆL.HVISER. Nu kan selv prøve med de andre funktioner, f.eks. MIDDEL.HVIS/HVISER, MAKS.HVISER, MINHVISER. De er alle struktureret på samme måde, så når du får skrevet én formel, kan du bare erstatte funktionsnavnet med det, du ønsker. Vi har skrevet alle de funktioner, du skal bruge til celle E106, så du kan kopiere/indsætte disse eller selv prøve at skrive dem for at øve dig. SUM.HVIS =SUM.HVIS(C92:C103;C106;E92:E103) SUM.HVISER =SUM.HVISER(E92:E103;C92:C103;C106;D92:D103;D106) MIDDEL.HVIS =MIDDEL.HVIS(C92:C103;C106;E92:E103) MIDDEL.HVISER =MIDDEL.HVISER(E92:E103;C92:C103;C106;D92:D103;D106) TÆL.HVIS =TÆL.HVIS(C92:C103;C106) TÆL.HVISER =TÆL.HVISER(C92:C103;C106;D92:D103;D106) MAKS.HVISER =MAKS.HVISER(E92:E103;C92:C103;C106;D92:D103;D106) MIN.HVISER =MIN.HVISER(E92:E103;C92:C103;C106;D92:D103;D106)
A34: Dyk ned for at få flere detaljer
A35: Næste
A36: SUM.HVIS med et værdiargument
A37: Her et eksempel på funktionen SUM.HVIS, hvor der bruges større end (>) til at finde alle værdier, der er større end en given mængde:
A38: =SUMIF(D118:D122,">=50") -> 200
A39: Opsummer nogle værdier baseret på dette kriterium:
A40: ... Gennemse disse celler...
A41: ... og hvis værdien er større end 50, så opsummer den.
A42: BEMÆRK! Hvis du finder ud af, at du opretter en masse betingede formler, kan du måske få mere ud af at bruge en løsning med pivottabel. Se denne artikel om pivottabeller for at få flere oplysninger.
A43: Flere oplysninger på nettet
A44: Alt om funktionen SUM.HVIS
A45: Alt om funktionen SUM.HVISER
A46: Alt om funktionen TÆL.HVIS
A47: Alt om funktionen TÆL.HVISER
A48: Alt om funktionen MIDDEL.HVIS
A49: Alt om funktionen MIDDEL.HVISER | C49: Frugt | D49: Mængde | F49: Frugt | G49: Type | H49: Mængde
A50: Alt om funktionen MIN.HVISER | C50: Æbler | D50: 50 | F50: Æbler | G50: Fuji | H50: 50
A51: Alt om funktionen MAKS.HVISER | C51: Appelsiner | D51: 20 | F51: Appelsiner | G51: Florida | H51: 20
A52: Opret en rulleliste | C52: Bananer | D52: 60 | F52: Bananer | G52: Cavendish | H52: 60
A53: Gratis onlinekurser i Excel | C53: Citroner | D53: 40 | F53: Citroner | G53: Grov | H53: 40
A54: Tilbage til toppen | C54: Æbler | D54: 50 | F54: Æbler | G54: Honeycrisp | H54: 50
A55: Næste | C55: Appelsiner | D55: 20 | F55: Appelsiner | G55: Navle | H55: 20
C56: Bananer | D56: 60 | F56: Bananer | G56: Lady Finger | H56: 60
C57: Citroner | D57: 40 | F57: Citroner | G57: Eureka | H57: 40
C58: Æbler | D58: 50 | F58: Æbler | G58: Honeycrisp | H58: 50
C59: Appelsiner | D59: 20 | F59: Appelsiner | G59: Navle | H59: 20
C60: Bananer | D60: 60 | F60: Bananer | G60: Cavendish | H60: 60
C61: Citroner | D61: 40 | F61: Citroner | G61: Eureka | H61: 40
C63: Frugt | D63: TÆL.HVIS | F63: Frugt | G63: Type | H63: TÆL.HVISER
C64: Æbler | D64: =COUNTIF(C50:C61,C64) -> 3 | F64: Appelsiner | G64: Florida | H64: =COUNTIFS(F50:F61,F64,G50:G61,G64) -> 1
C91: Frugt | D91: Type | E91: Mængde
C92: Æbler | D92: Fuji | E92: 50
C93: Appelsiner | D93: Florida | E93: 20
C94: Bananer | D94: Cavendish | E94: 60
C95: Citroner | D95: Grov | E95: 40
C96: Æbler | D96: Honeycrisp | E96: 50
C97: Appelsiner | D97: Navle | E97: 20
C98: Bananer | D98: Lady Finger | E98: 60
C99: Citroner | D99: Eureka | E99: 40
C100: Æbler | D100: Honeycrisp | E100: 50
C101: Appelsiner | D101: Navle | E101: 20
C102: Bananer | D102: Cavendish | E102: 60
C103: Citroner | D103: Eureka | E103: 40
C105: Frugt | D105: Type | E105: Prøv det
C106: Citroner | D106: Eureka | E106: =AVERAGEIFS(E92:E103,C92:C103,C106,D92:D103,D106) -> 40
C117: Vare | D117: Mængde
C118: Brød | D118: 50
C119: Donuts | D119: 100
C120: Småkager | D120: 40
C121: Kager | D121: 50
C122: Tærter | D122: 20
D123: =SUMIF(D118:D122,">=50") -> 200

Sheet Guiden Funktion
A1: Lad guiden Funktion assistere dig
A2: Hvis du kender navnet på den ønskede funktion, men du ikke er sikker på, hvordan du skal opbygge den, kan du bruge guiden Funktion til at hjælpe dig.
A3: Markér celle D10, og gå derefter til Formler > Indsæt funktion > skriv LOPSLAG i feltet Søg efter en funktion og tryk på Udfør. Når LOPSLAG er fremhævet, skal du klikke på OK nederst. Når du vælger en funktion på listen, vises dens syntaks i Excel.
A4: Derefter skal du indtaste funktionsargumenterne i deres respektive tekstbokse. Mens du indtaster hver enkelt, evalueres de i Excel, og du vises dets resultat med det endelige resultat nederst. Mens du indtaster hver sektion vises kriterierne for hvert argument nederst i formularen. Tryk på OK, når du er færdig, hvorefter Excel indfører formlen for dig. | C4: Frugt | D4: Mængde
A5: SE HER Du skulle gerne ende med =LOPSLAG(C10;C5:D8;2;FALSK). | C5: Æbler | D5: 50
A6: VÆRD AT VIDE Du kan angive celle- og områdereferencer, eller du kan vælge dem med musen. | C6: Appelsiner | D6: 20
A7: VÆRD AT VIDE Mens du angiver hvert arguments sektion, vises argumentets beskrivelse mod slutningen af formularen over formelresultatet. | C7: Bananer | D7: 60
A8: Forrige | C8: Citroner | D8: 40
A9: Næste
A10: Flere oplysninger på nettet | C10: Æbler | D10: =VLOOKUP(C10,C5:D8,2,FALSE) -> 50
A11: Oversigt over formler i Excel
A12: Excel-funktioner (efter kategori)
A13: Excel-funktioner (alfabetisk)
A14: Gratis onlinekurser i Excel

Sheet Fejl i formler
A1: Rettelse af fejl I formler
A2: På et eller andet tidspunkt støder du på en formel, der indeholder en fejl. Det vises med #Fejlnavn i Excel. Fejl kan være nyttige, fordi de viser, når noget ikke fungerer rigtigt, men de kan være svære at rette. Heldigvis er der flere funktioner, der kan hjælpe dig med at spore fejlkilden og rette den.
A3: Fejlkontrol – Gå til Formler > Fejlkontrol. Det indlæser en dialogboks, der kan vise dig den generelle årsag til din specifikke fejl. I celle D9 forårsages fejlen #I/T af, at der ikke er nogen værdi, der svarer til "Æble". Du kan rette dette ved at bruge en værdi, der findes, undertrykke fejlen med HVIS.FEJL eller ignorere den og vide, at den forsvinder, når du bruger en værdi, der findes. | C3: Frugt | D3: Mængde
A4: Hvis du klikker på Hjælp til denne fejl, åbnes et Hjælp-emne til den specifikke fejlmeddelelse. Hvis du klikker på Vis beregningstrin, indlæses dialogboksen Evaluer formel. | C4: Æbler | D4: 50
A5: Hver gang du klikker på Evaluer, gennemgås formlen ét afsnit ad gangen i Excel. Der angives ikke nødvendigvis, hvorfor en fejl opstår, men der påpeges hvor. Derfra kan du kigge på Hjælp-emnet for at udlede, hvad der gik galt med din formel. | C5: Appelsiner | D5: 20
A6: EKSPERIMENT Hvad er der galt her? Tip: Vi forsøger at udregne en SUM af alle elementerne. | C6: Bananer | D6: 60
A7: VÆRD AT VIDE Når du klikker på Indstillinger, vil du kunne indstille reglerne for, hvornår fejl i Excel vises eller ignoreres. | C7: Citroner | D7: 40
A8: Forrige
A9: Næste | C9: Æble | D9: =VLOOKUP(C9,C3:D7,2,FALSE) -> 
A10: Flere oplysninger på nettet
A11: Find fejl i formler
A12: Sådan undgår du ødelagte formler
A13: Evaluer en integreret formel ét trin ad gangen
A14: Gratis onlinekurser i Excel
C30: Frugt | D30: Mængde
C31: Æbler | D31: 50
C32: Appelsiner | D32: 20
C33: Bananer | D33: 60
C34: Citroner | D34: 40
C36: Total | D36: =sume(D31:D34) -> 

Sheet Få mere at vide
A1: Har du flere spørgsmål om Excel?
A2: Tryk på ALT+Q, og skriv det, du vil vide.
A3: Bare fortsæt. Få mere at vide om Excel:
A4: Community: Stil spørgsmål, og opret forbindelse til andre Excel-tilhængere.
A5: Andre nyheder? Office 365-abonnenter får løbende opdateringer og nye funktioner.
